bitfinex-derivatives/quotes_BTCF0:USTF0_20241006
["timestamp","ask_amount","ask_price","bid_price","bid_amount"]
[1728241939113,1.187,62891.0,62885.0,0.0037]
[1728241939318,1.187,62891.0,62882.0,0.3608]
[1728241939319,0.11,62886.0,62882.0,0.3608]
[1728241939619,0.11,62883.0,62882.0,0.3608]
[1728241940515,0.173607,62883.0,62882.0,0.40821846]
[1728241940918,0.173607,62883.0,62882.0,0.3608]
[1728241941433,0.173607,62883.0,62882.0,0.3728]
[1728241942030,0.173607,62883.0,62882.0,0.3648]
[1728241942323,0.173607,62883.0,62882.0,0.3748]
[1728241942628,0.174607,62883.0,62882.0,0.3748]
[1728241942831,0.20395645,62883.0,62882.0,0.3748]
[1728241943219,1.21742945,62883.0,62877.0,0.0037]
[1728241943424,0.063613,62877.0,62874.0,0.0037]
[1728241943621,0.11,62875.0,62873.0,0.06333742]
[1728241943824,0.11,62874.0,62871.0,0.06333742]
[1728241944022,0.12795687,62882.0,62871.0,0.06333742]
[1728241944023,0.11,62872.0,62871.0,0.06333742]
[1728241944414,0.11,62872.0,62870.0,0.06333742]
[1728241945725,0.111,62872.0,62870.0,0.07433742]
[1728241946425,0.111,62872.0,62871.0,0.06333742]
[1728241946621,0.111,62872.0,62870.0,0.07433742]
[1728241947330,0.02910171,62874.0,62870.0,0.07433742]
[1728241947331,0.02910171,62874.0,62871.0,0.26874578]
[1728241947530,0.3608,62878.0,62872.0,0.26874578]
[1728241947729,0.063613,62877.0,62875.0,0.09471372]
[1728241947928,0.063613,62877.0,62876.0,0.12121117]
[1728241948526,0.173613,62877.0,62876.0,0.12121117]
[1728241949029,0.238613,62877.0,62876.0,0.12121117]
[1728241949436,0.238613,62877.0,62876.0,0.12621117]
[1728241949930,0.239613,62877.0,62876.0,0.12921117]
[1728241950524,0.239613,62877.0,62876.0,0.12621117]
[1728241950732,0.239613,62877.0,62876.0,0.12921117]
[1728241951127,0.239613,62877.0,62876.0,0.12421117]
[1728241951324,0.239613,62877.0,62876.0,0.12821117]
[1728241955233,0.239613,62877.0,62876.0,0.007]
[1728241956136,0.600413,62877.0,62876.0,0.007]
[1728241958243,0.600413,62877.0,62876.0,0.003]
[1728241958541,0.601413,62877.0,62876.0,0.003]
[1728241959545,0.063616,62874.0,62868.0,0.0037]
[1728241959739,0.11,62869.0,62864.0,0.0369]
[1728241959938,0.11,62869.0,62865.0,0.3608]
[1728241960734,0.11,62869.0,62868.0,0.004]
[1728241961448,0.111,62869.0,62868.0,0.004]
[1728241961839,0.11,62869.0,62868.0,0.004]
[1728241962153,0.111,62869.0,62868.0,0.007]
[1728241962448,0.111,62869.0,62868.0,0.12821432]
[1728241962449,0.112,62869.0,62868.0,0.12821432]
[1728241962949,0.111,62869.0,62868.0,0.12821432]
[1728241963147,0.112,62869.0,62868.0,0.13221432]
[1728241963347,0.002,62869.0,62868.0,0.13221432]
[1728241963549,0.11,62871.0,62868.0,0.27975277]
[1728241963845,0.11,62871.0,62869.0,0.26875277]
[1728241964045,0.11,62871.0,62870.0,0.26875277]
[1728241965150,0.11,62871.0,62870.0,0.12121432]
[1728241966032,0.111,62871.0,62870.0,0.12121432]
[1728241966436,0.111,62871.0,62870.0,0.12621432]
[1728241966642,0.11,62871.0,62870.0,0.12621432]
[1728241966843,0.111,62871.0,62870.0,0.13121432]
[1728241967338,0.111,62871.0,62870.0,0.22603907]
[1728241968247,0.111,62871.0,62870.0,0.13121432]
[1728241968449,0.111,62871.0,62870.0,0.22624352]
[1728241970245,0.111,62871.0,62870.0,0.01]
[1728241992462,0.16804805,62871.0,62870.0,0.01]
[1728242000476,0.111,62871.0,62870.0,0.01]
[1728242007378,0.16804797,62871.0,62870.0,0.01]
[1728242013575,0.05804797,62871.0,62870.0,0.01]
[1728242014185,0.001,62871.0,62870.0,0.01]
[1728242017664,0.001,62871.0,62870.0,0.66055961]
[1728242017868,0.0037,62878.0,62875.0,0.063614]
[1728242018077,0.02810081,62881.0,62877.0,0.11]
[1728242018274,0.063606,62884.0,62877.0,0.11]
[1728242019173,0.001,62878.0,62877.0,0.11]
[1728242020569,0.11,62883.0,62877.0,0.114]
[1728242020769,0.11,62883.0,62877.0,0.177612]
[1728242020970,0.002,62884.0,62882.0,0.063607]
[1728242021172,0.002,62884.0,62883.0,0.11]
[1728242021473,0.002,62884.0,62883.0,0.6820337]
[1728242021676,0.0037,62892.0,62888.0,0.063601]
[1728242021978,0.02877707,62894.0,62890.0,0.063599]
[1728242022377,0.41783116,62891.0,62890.0,0.063599]
[1728242023475,0.42583116,62891.0,62890.0,0.063599]
[1728242023670,0.43183116,62891.0,62890.0,0.063599]
[1728242024574,0.43383116,62891.0,62890.0,0.064599]
[1728242025086,0.43383116,62891.0,62890.0,0.065599]
[1728242027078,0.43383116,62891.0,62890.0,0.002]
[1728242029583,0.3768,62891.0,62890.0,0.002]
[1728242031781,0.016,62891.0,62890.0,0.002]
[1728242032375,0.126,62891.0,62890.0,0.002]
[1728242060709,1.32393326,62891.0,62883.0,0.0037]
[1728242060910,0.063605,62885.0,62880.0,0.0037]
[1728242061212,0.11,62881.0,62877.0,0.428112]
[1728242061525,0.11,62881.0,62877.0,0.425612]
[1728242061717,0.11,62881.0,62877.0,0.424412]
[1728242061913,0.05703326,62884.0,62877.0,0.424412]
[1728242061914,0.11,62878.0,62877.0,0.424412]
[1728242063308,0.111,62878.0,62877.0,0.424412]
[1728242064103,0.111,62878.0,62877.0,0.429412]
[1728242064715,0.111,62878.0,62877.0,0.424412]
[1728242064910,0.112,62878.0,62877.0,0.428412]
[1728242067712,0.112,62878.0,62877.0,0.067612]
[1728242067911,0.112,62878.0,62877.0,0.13098669]
[1728242068616,0.112,62878.0,62877.0,0.067612]
[1728242071112,0.112,62878.0,62877.0,0.004]
[1728242071301,0.112,62878.0,62877.0,0.0515023]
[1728242071613,0.112,62878.0,62877.0,0.004]
[1728242076617,0.112,62878.0,62877.0,0.05148116]
[1728242076815,0.112,62878.0,62877.0,0.004]
[1728242077316,0.112,62878.0,62877.0,0.05148107]
[1728242082220,0.112,62878.0,62877.0,0.004]
[1728242086026,0.1690454,62878.0,62877.0,0.004]
[1728242089715,0.1690454,62878.0,62877.0,0.06737469]
[1728242089716,0.112,62878.0,62877.0,0.06737469]
[1728242091119,0.112,62878.0,62877.0,0.004]
[1728242096625,0.002,62878.0,62877.0,0.004]
[1728242097019,0.002,62878.0,62877.0,0.12519862]
[1728242097421,0.02811378,62881.0,62878.0,0.063612]
[1728242097727,0.05704125,62882.0,62878.0,0.063612]
[1728242097925,0.16704125,62883.0,62878.0,0.063612]
[1728242098724,0.05704125,62883.0,62882.0,0.11]
[1728242098924,0.02832909,62887.0,62882.0,0.11]
[1728242099124,0.02832909,62887.0,62880.0,0.3608]
[1728242099125,0.11,62889.0,62886.0,0.063603]
[1728242099327,0.11,62889.0,62887.0,0.0964]
[1728242099827,0.16704125,62889.0,62887.0,0.0964]
[1728242100024,0.05704125,62888.0,62887.0,0.0964]
[1728242100222,0.11,62889.0,62887.0,0.0964]
[1728242100429,0.11,62889.0,62887.0,0.160002]
[1728242100629,0.118,62889.0,62887.0,0.161002]
[1728242101124,0.11,62892.0,62888.0,0.11]
[1728242101424,0.11,62892.0,62888.0,0.063601]
[1728242101622,0.00238555,62895.0,62888.0,0.063601]
[1728242101623,0.115,62889.0,62888.0,0.063601]
[1728242102435,0.115,62889.0,62887.0,0.0974]
[1728242102725,0.115,62889.0,62887.0,0.065]
[1728242102924,0.118,62889.0,62888.0,0.001]
[1728242103920,0.11,62889.0,62888.0,0.001]
[1728242104120,0.118,62889.0,62888.0,0.002]
[1728242104729,0.118,62889.0,62888.0,0.001]
[1728242104730,0.123,62889.0,62888.0,0.001]
[1728242105533,0.124,62889.0,62888.0,0.002]
[1728242108133,0.4848,62889.0,62888.0,0.002]
[1728242108834,0.124,62889.0,62888.0,0.002]
[1728242109039,0.4848,62889.0,62888.0,0.002]
[1728242112735,0.54183742,62889.0,62888.0,0.002]
[1728242119740,0.4848,62889.0,62888.0,0.002]
[1728242126551,0.4848,62889.0,62888.0,0.04954684]
[1728242127755,0.4848,62889.0,62888.0,0.002]
[1728242133052,0.3748,62889.0,62888.0,0.002]
[1728242133243,0.014,62889.0,62888.0,0.002]
[1728242133647,0.36172,62895.0,62891.0,0.063598]
[1728242133850,0.49980735,62895.0,62893.0,0.063596]
[1728242134849,0.0570298,62894.0,62893.0,0.063596]
[1728242136447,0.0570298,62894.0,62893.0,0.064596]
[1728242136772,0.0570298,62894.0,62893.0,0.065596]
[1728242136960,0.0570298,62894.0,62893.0,0.097096]
[1728242137266,0.0580298,62894.0,62893.0,0.098096]
[1728242137669,0.0680298,62894.0,62893.0,0.098096]
[1728242137856,0.0680298,62894.0,62893.0,0.0345]
[1728242142758,0.011,62894.0,62893.0,0.0345]
[1728242144665,0.011,62894.0,62893.0,0.1445]
[1728242145864,0.0134855,62902.0,62893.0,1.26904684]
[1728242146061,0.0023855,62902.0,62900.0,0.11]
[1728242146858,0.0023855,62902.0,62900.0,0.173589]
[1728242147162,0.0093855,62902.0,62900.0,0.063589]
[1728242147358,0.0093855,62902.0,62898.0,0.11]
[1728242147565,0.0093855,62902.0,62895.0,0.11]
[1728242148158,0.0093855,62902.0,62896.0,0.063593]
[1728242148865,0.0093855,62902.0,62900.0,0.001]
[1728242149066,0.11,62901.0,62900.0,0.001]
[1728242149468,0.11,62901.0,62900.0,0.002]
[1728242150666,0.11,62901.0,62900.0,0.001]
[1728242152366,0.11,62901.0,62900.0,0.002]
[1728242153273,0.03103183,62902.0,62900.0,0.002]
[1728242154371,0.03103183,62902.0,62900.0,0.001]
[1728242154581,0.03603183,62902.0,62900.0,0.002]
[1728242155679,0.005,62902.0,62900.0,0.175589]
[1728242159669,0.005,62902.0,62901.0,0.47692]
[1728242160079,0.005,62902.0,62901.0,1.07692]
[1728242160879,0.006,62902.0,62901.0,1.07792]
[1728242162270,0.006,62902.0,62901.0,1.07892]
[1728242162668,0.006,62902.0,62901.0,1.10803396]
[1728242163065,0.0111,62909.0,62907.0,0.063582]
[1728242163272,0.0111,62916.0,62908.0,0.0317]
[1728242163471,0.0659546,62920.0,62915.0,0.11]
[1728242163779,0.173572,62918.0,62910.0,0.067279]
[1728242163985,0.11,62915.0,62910.0,0.063579]
[1728242164975,0.11,62915.0,62912.0,0.063577]
[1728242166374,0.11,62915.0,62912.0,0.064577]
[1728242166589,0.11,62915.0,62912.0,0.065577]
[1728242166775,0.11,62918.0,62913.0,0.063576]
[1728242166975,0.0305364,62920.0,62915.0,0.11]
[1728242167178,0.0023846,62920.0,62918.0,0.17357]
[1728242167773,0.0023846,62920.0,62919.0,0.0302]
[1728242168375,0.0148,62926.0,62924.0,0.063565]
[1728242168577,0.11,62928.0,62924.0,0.063565]
[1728242168578,0.11,62928.0,62924.0,0.173565]
[1728242168781,0.11,62928.0,62924.0,0.063565]
[1728242169282,0.00786153,62930.0,62928.0,0.063561]
[1728242169482,0.11,62930.0,62928.0,0.063561]
[1728242169677,0.11787823,62930.0,62928.0,0.063561]
[1728242170869,0.11787823,62930.0,62928.0,0.064561]
[1728242172587,0.11787823,62930.0,62928.0,0.065561]
[1728242172979,0.05699757,62929.0,62928.0,0.065561]
[1728242173585,0.05699757,62929.0,62928.0,0.175561]
[1728242173785,0.00787823,62930.0,62928.0,0.175561]
[1728242173989,0.05699757,62932.0,62928.0,0.175561]
[1728242174292,0.00810749,62932.0,62928.0,0.175561]
[1728242174475,0.11,62931.0,62928.0,0.065561]
[1728242176088,0.11,62931.0,62928.0,0.002]
[1728242176785,0.063562,62927.0,62922.0,0.0037]
[1728242177090,0.11,62923.0,62920.0,0.37196776]
[1728242177680,0.0318,62922.0,62920.0,0.37196776]
[1728242178284,0.08879757,62922.0,62920.0,0.37196776]
[1728242178692,0.08879757,62922.0,62920.0,0.37296776]
[1728242179088,0.08879757,62922.0,62920.0,0.37196776]
[1728242179387,0.08979757,62922.0,62920.0,0.37296776]
[1728242179979,0.08979757,62922.0,62920.0,0.37396776]
[1728242180184,0.09079757,62922.0,62920.0,0.37396776]
[1728242180585,0.15436457,62922.0,62920.0,0.002]
[1728242182498,0.51516457,62922.0,62920.0,0.002]
[1728242182685,0.05699757,62921.0,62920.0,0.002]
[1728242183895,0.05799757,62921.0,62920.0,0.002]
[1728242184802,0.05899757,62921.0,62920.0,0.002]
[1728242186395,0.16899757,62921.0,62920.0,0.002]
[1728242188103,0.112,62921.0,62920.0,0.002]
[1728242195199,0.002,62921.0,62920.0,0.002]
[1728242198203,0.063573,62917.0,62914.0,0.0037]
[1728242198405,0.11,62915.0,62910.0,0.0037]
[1728242198597,0.11,62912.0,62907.0,0.0037]
[1728242200311,0.111,62912.0,62911.0,0.00338395]
[1728242201210,0.113,62912.0,62911.0,0.00438395]
[1728242202906,0.003,62912.0,62911.0,0.00438395]
[1728242206410,0.163,62912.0,62911.0,0.002]
[1728242206606,0.22000836,62912.0,62911.0,0.002]
[1728242206810,0.24849579,62912.0,62911.0,0.002]
[1728242209617,0.22000836,62912.0,62911.0,0.002]
[1728242210114,0.163,62912.0,62911.0,0.002]
[1728242220107,0.003,62912.0,62911.0,0.162]
[1728242220306,0.003,62912.0,62911.0,1.59968]
[1728242220507,0.3608,62924.0,62911.0,1.59968]
[1728242220722,0.3608,62924.0,62919.0,0.06357]
[1728242220924,0.3608,62924.0,62920.0,0.0315]
[1728242221118,0.3608,62924.0,62920.0,0.095069]
[1728242221324,0.3608,62924.0,62922.0,0.063567]
[1728242222624,0.3648,62924.0,62922.0,0.065567]
[1728242223629,0.3648,62924.0,62923.0,0.0312]
[1728242224822,0.3628,62924.0,62923.0,0.0312]
[1728242225126,0.3608,62924.0,62923.0,0.0332]
[1728242227315,0.41780359,62924.0,62923.0,0.0332]
[1728242232030,0.52780359,62924.0,62923.0,0.0332]
[1728242233028,0.4708,62924.0,62923.0,0.0332]
[1728242233618,0.11,62924.0,62923.0,0.0332]
[1728242236230,0.11,62924.0,62923.0,0.002]
[1728242240431,0.16700274,62924.0,62923.0,0.002]
[1728242242723,0.11,62924.0,62923.0,0.002]
[1728242248032,0.05700274,62925.0,62923.0,0.112]
[1728242248235,0.15114264,62930.0,62923.0,0.112]
[1728242248443,0.13924264,62930.0,62923.0,0.112]
[1728242248933,0.13924264,62930.0,62923.0,0.175566]
[1728242249637,0.11,62927.0,62923.0,0.065566]
[1728242250030,0.11,62927.0,62923.0,0.064566]
[1728242250337,0.001,62925.0,62923.0,0.065566]
[1728242250926,0.11,62927.0,62923.0,0.064566]
[1728242251131,0.111,62927.0,62923.0,0.065566]
[1728242254027,0.11,62927.0,62923.0,0.064566]
[1728242254235,0.001,62925.0,62923.0,0.065566]
[1728242254929,0.11,62927.0,62923.0,0.065566]
[1728242255243,0.111,62927.0,62923.0,0.065566]
[1728242255435,0.111,62927.0,62923.0,0.064566]
[1728242255742,0.111,62927.0,62923.0,0.065566]
[1728242255743,0.001,62925.0,62923.0,0.065566]
[1728242256045,0.05699932,62924.0,62923.0,0.065566]
[1728242257033,0.05699932,62924.0,62923.0,0.175566]
[1728242258636,0.05699932,62924.0,62923.0,0.174566]
[1728242258837,0.05799932,62924.0,62923.0,0.175566]
[1728242259038,0.001,62924.0,62923.0,0.175566]
[1728242262159,0.001,62924.0,62923.0,0.065566]
[1728242263434,0.001,62924.0,62923.0,0.09436325]
[1728242263634,0.001,62924.0,62923.0,0.45516325]
[1728242263835,0.001,62924.0,62923.0,0.065566]
[1728242270141,0.05799868,62924.0,62923.0,0.065566]
[1728242278148,0.001,62924.0,62923.0,0.065566]
[1728242294574,0.4718,62924.0,62923.0,0.002]
[1728242294761,0.52879917,62924.0,62916.0,0.0037]
[1728242294957,0.11,62918.0,62914.0,0.063575]
[1728242296071,0.11,62918.0,62916.0,0.002]
[1728242296765,0.11,62918.0,62916.0,0.001]
[1728242296958,0.111,62918.0,62916.0,0.001]
[1728242297966,0.112,62918.0,62914.0,0.002]
[1728242298170,0.4708,62915.0,62914.0,0.002]
[1728242298370,0.52779917,62915.0,62914.0,0.001]
[1728242298672,0.52779917,62915.0,62910.0,0.00238389]
[1728242298973,0.11,62911.0,62910.0,0.00238389]
[1728242301692,0.112,62911.0,62910.0,0.00238389]
[1728242302175,0.113,62911.0,62910.0,0.00338389]
[1728242302573,0.113,62911.0,62910.0,0.0666097]
[1728242303267,0.113,62911.0,62910.0,0.00338389]
[1728242304572,0.113,62911.0,62910.0,0.001]
[1728242305074,0.1414939,62911.0,62910.0,0.001]
[1728242319080,0.1414939,62911.0,62905.0,0.0037]
[1728242319081,0.063583,62906.0,62905.0,0.0037]
[1728242319285,0.173583,62906.0,62901.0,0.0037]
[1728242319482,0.173583,62906.0,62897.0,0.424392]
[1728242319483,0.11,62901.0,62897.0,0.424392]
[1728242321682,0.11,62901.0,62897.0,0.430392]
[1728242322677,0.111,62901.0,62897.0,0.430392]
[1728242323493,0.07122586,62901.0,62899.0,0.07879169]
[1728242324086,0.07122586,62901.0,62898.0,0.14238269]
[1728242324291,0.07122586,62901.0,62899.0,0.19994308]
[1728242324492,0.07122586,62901.0,62899.0,0.07879169]
[1728242324788,0.07222586,62901.0,62899.0,0.08279169]
[1728242327183,0.07222586,62901.0,62900.0,0.07879169]
[1728242328282,0.07222586,62901.0,62899.0,0.07879169]
[1728242328486,0.07222586,62901.0,62900.0,0.003]
[1728242329388,0.07022586,62901.0,62900.0,0.08179169]
[1728242329590,0.07222586,62901.0,62900.0,0.08179169]
[1728242329891,0.07222586,62901.0,62900.0,0.20294414]
[1728242330190,0.07222586,62901.0,62900.0,0.19994414]
[1728242330579,0.07222586,62901.0,62899.0,0.004]
[1728242330774,0.07222586,62901.0,62900.0,0.003]
[1728242336294,0.002,62901.0,62900.0,0.003]
[1728242336484,0.112,62901.0,62900.0,0.003]
[1728242338595,0.05631303,62901.0,62900.0,0.27163]
[1728242340298,0.063588,62902.0,62900.0,0.12415855]
[1728242340496,0.063588,62902.0,62901.0,0.12115855]
[1728242340690,0.173588,62902.0,62901.0,0.12115855]
[1728242342290,0.38971118,62904.0,62901.0,0.37862852]
[1728242342291,0.36164,62904.0,62901.0,0.37862852]
[1728242342601,0.063583,62907.0,62902.0,0.30172852]
[1728242342899,0.063583,62907.0,62903.0,0.26862852]
[1728242343192,0.11,62908.0,62904.0,0.26862852]
[1728242343401,0.11,62908.0,62905.0,0.26862852]
[1728242343591,0.11,62908.0,62906.0,0.29942852]
[1728242343792,0.11,62908.0,62907.0,0.12115855]
[1728242344892,0.11,62908.0,62907.0,0.26861358]
[1728242345494,0.11,62908.0,62906.0,0.0308]
[1728242345894,0.11,62908.0,62907.0,0.001]
[1728242346590,0.112,62908.0,62907.0,0.001]
[1728242346787,1.2459002,62908.0,62892.0,0.063597]
[1728242346990,0.11,62900.0,62892.0,0.063597]
[1728242347193,0.17359,62900.0,62892.0,0.067297]
[1728242347394,0.11,62895.0,62892.0,0.063597]
[1728242348797,0.173595,62895.0,62890.0,0.0624]
[1728242349097,0.173595,62895.0,62890.0,0.0612]
[1728242349499,0.173595,62895.0,62893.0,0.3708]
[1728242349687,0.173595,62895.0,62893.0,0.3738]
[1728242350795,0.063595,62895.0,62893.0,0.3738]
[1728242352596,0.063595,62895.0,62894.0,0.26863426]
[1728242353196,0.1211,62904.0,62898.0,0.063591]
[1728242353402,0.0954,62909.0,62901.0,0.0949715]
[1728242353403,0.063587,62903.0,62901.0,0.0949715]
[1728242353705,0.063587,62903.0,62902.0,0.12116079]
[1728242354697,0.173587,62903.0,62902.0,0.12116079]
[1728242354899,0.173587,62903.0,62902.0,0.12115815]
[1728242355597,0.174587,62903.0,62902.0,0.12115815]
[1728242356803,0.174587,62903.0,62902.0,0.12215815]
[1728242359213,0.535387,62903.0,62902.0,0.12215815]
[1728242359511,0.535387,62903.0,62902.0,0.20129713]
[1728242359902,0.535387,62903.0,62902.0,0.12215815]
[1728242360205,0.535387,62903.0,62902.0,0.20129638]
[1728242360705,0.59241329,62903.0,62902.0,0.001]
[1728242361492,0.23161329,62903.0,62902.0,0.001]
[1728242361718,0.95321329,62903.0,62902.0,0.001]
[1728242362707,0.896187,62903.0,62902.0,0.001]
[1728242363402,0.063593,62897.0,62895.0,0.0037]
[1728242363594,0.11,62896.0,62890.0,0.0303]
[1728242363799,0.11,62892.0,62887.0,0.063602]
[1728242363998,0.7226,62903.0,62886.0,0.3608]
[1728242363999,0.11,62890.0,62886.0,0.3608]
[1728242364197,0.11,62887.0,62886.0,0.3608]
[1728242364502,0.11,62887.0,62885.0,0.00238497]
[1728242365309,0.11,62887.0,62886.0,0.011]
[1728242365904,0.11,62887.0,62885.0,0.01438497]
[1728242366097,0.11,62887.0,62885.0,0.02838497]
[1728242367617,0.063601,62889.0,62886.0,0.27968045]
[1728242367910,0.063601,62889.0,62887.0,0.26868045]
[1728242368109,0.063601,62889.0,62888.0,0.26868045]
[1728242368509,0.33435313,62892.0,62888.0,0.26868045]
[1728242368711,0.33435313,62892.0,62891.0,0.09490611]
[1728242368914,0.33435313,62892.0,62891.0,0.21608782]
[1728242368915,0.4708,62892.0,62891.0,0.21608782]
[1728242369508,0.11,62892.0,62891.0,0.12118171]
[1728242369905,0.4708,62892.0,62891.0,0.12118171]
[1728242370210,0.11,62892.0,62891.0,0.13318171]
[1728242370410,0.4708,62892.0,62891.0,0.13318171]
[1728242371206,0.4708,62892.0,62891.0,0.13818171]
[1728242372210,0.49896375,62892.0,62891.0,0.13818171]
[1728242373116,0.13816375,62892.0,62891.0,0.13818171]
[1728242373320,0.13816375,62892.0,62891.0,0.13818138]
[1728242373820,0.49896375,62892.0,62891.0,0.13818138]
[1728242374811,0.13816375,62892.0,62891.0,0.13818138]
[1728242375010,0.49896375,62892.0,62891.0,0.13818138]
[1728242375617,0.49896375,62892.0,62891.0,0.017]
[1728242381524,0.13816375,62892.0,62891.0,0.017]
[1728242381710,0.49896375,62892.0,62891.0,0.017]
[1728242382113,0.13816375,62892.0,62891.0,0.017]
[1728242382424,0.49896375,62892.0,62891.0,0.017]
[1728242390615,0.49896375,62892.0,62891.0,0.21726538]
[1728242392429,0.49896375,62892.0,62891.0,0.13818552]
[1728242393434,0.49896375,62892.0,62891.0,0.13818553]
[1728242399938,0.49896375,62892.0,62891.0,0.23309164]
[1728242400232,0.49896375,62892.0,62891.0,0.13818553]
[1728242400435,0.49896375,62892.0,62891.0,0.23309164]
[1728242401535,0.49896375,62892.0,62891.0,0.13818553]
[1728242402033,0.49896375,62892.0,62891.0,0.1381864]
[1728242402639,0.49896375,62892.0,62891.0,0.23309251]
[1728242403141,0.49896375,62892.0,62891.0,0.1381864]
[1728242403335,0.49896375,62892.0,62891.0,0.23309251]
[1728242405639,0.49896375,62892.0,62891.0,0.1381864]
[1728242405833,0.49896375,62892.0,62891.0,0.017]
[1728242409944,0.13816375,62892.0,62891.0,0.017]
[1728242410941,0.49896375,62892.0,62891.0,0.017]
[1728242415243,0.49896375,62892.0,62887.0,0.04755432]
[1728242415445,0.063603,62886.0,62884.0,0.04755432]
[1728242415642,0.063603,62886.0,62883.0,0.04755432]
[1728242415951,0.11,62884.0,62883.0,0.04755432]
[1728242416343,0.11,62884.0,62882.0,0.04755432]
[1728242416647,0.11,62883.0,62879.0,0.06340576]
[1728242416847,0.063603,62886.0,62879.0,0.06340576]
[1728242416848,0.11,62880.0,62879.0,0.06340576]
[1728242417338,0.11,62880.0,62878.0,0.09699107]
[1728242418848,0.111,62880.0,62879.0,0.013]
[1728242419044,0.112,62880.0,62879.0,0.013]
[1728242419446,0.112,62880.0,62879.0,0.06053752]
[1728242420143,0.14054775,62880.0,62879.0,0.06053752]
[1728242420547,0.14054775,62880.0,62879.0,0.04753752]
[1728242420841,0.14054775,62880.0,62878.0,0.05958531]
[1728242421042,0.05704083,62879.0,62878.0,0.02838531]
[1728242421247,0.05704083,62879.0,62878.0,0.00238531]
[1728242422050,0.05704083,62879.0,62878.0,0.00338531]
[1728242422246,0.05704083,62879.0,62878.0,0.01738531]
[1728242422751,0.05704083,62879.0,62878.0,0.00338531]
[1728242422944,0.05704083,62879.0,62878.0,0.00738531]
[1728242424154,0.05804083,62879.0,62878.0,0.01638531]
[1728242426058,0.41884083,62879.0,62878.0,0.01638531]
[1728242426558,0.063617,62873.0,62872.0,0.0037]
[1728242426749,0.063618,62872.0,62865.0,0.0037]
[1728242426946,0.11,62868.0,62863.0,0.063627]
[1728242427355,0.11,62868.0,62865.0,0.063624]
[1728242427756,0.11,62868.0,62865.0,0.12702976]
[1728242428450,0.11,62868.0,62865.0,0.063624]
[1728242428651,0.001,62872.0,62866.0,0.438424]
[1728242428855,0.001,62872.0,62870.0,0.173619]
[1728242429060,0.001,62872.0,62871.0,0.14376518]
[1728242429357,0.001,62873.0,62872.0,0.063618]
[1728242429564,0.11,62878.0,62875.0,0.063614]
[1728242431265,0.111,62878.0,62875.0,0.063614]
[1728242432056,0.112,62878.0,62875.0,0.071614]
[1728242434565,0.112,62878.0,62875.0,0.008]
[1728242440280,0.4728,62878.0,62875.0,0.008]
[1728242440482,0.0570452,62877.0,62875.0,0.008]
[1728242441574,0.0580452,62877.0,62875.0,0.008]
[1728242442387,0.001,62877.0,62875.0,0.008]
[1728242442580,0.002,62877.0,62875.0,0.009]
[1728242444279,0.002,62877.0,62875.0,0.07240576]
[1728242445284,0.002,62877.0,62876.0,0.06340576]
[1728242446376,0.001,62877.0,62876.0,0.06440576]
[1728242446691,0.112,62877.0,62876.0,0.06440576]
[1728242447495,0.112,62877.0,62876.0,0.001]
[1728242448382,0.112,62877.0,62876.0,0.008]
[1728242452278,0.16904532,62877.0,62876.0,0.008]
[1728242452477,0.112,62877.0,62876.0,0.008]
[1728242453792,0.002,62877.0,62876.0,0.008]
[1728242453992,0.0111,62883.0,62881.0,0.063608]
[1728242454291,0.0111,62887.0,62882.0,0.11]
[1728242454500,0.06814339,62890.0,62885.0,0.11]
[1728242454680,0.11238616,62886.0,62883.0,0.0324]
[1728242455990,0.11238616,62886.0,62884.0,0.063605]
[1728242457679,0.11,62886.0,62884.0,0.063605]
[1728242458194,0.111,62886.0,62884.0,0.063605]
[1728242458791,0.112,62886.0,62884.0,0.063605]
[1728242460382,0.112,62886.0,62878.0,0.067311]
[1728242460581,0.11,62880.0,62878.0,0.063611]
[1728242460982,0.11,62880.0,62879.0,0.47712]
[1728242462690,0.11,62880.0,62879.0,0.48112]
[1728242462897,0.11,62880.0,62879.0,0.48312]
[1728242463098,0.11,62880.0,62879.0,1.08312]
[1728242463293,0.11,62883.0,62879.0,1.14673]
[1728242463490,0.11,62883.0,62879.0,0.06961]
[1728242464293,0.11,62883.0,62881.0,0.063608]
[1728242464687,0.0111,62889.0,62880.0,0.11]
[1728242464896,0.0111,62889.0,62885.0,0.11]
[1728242465090,0.11,62891.0,62879.0,0.006]
[1728242465091,0.11,62888.0,62887.0,0.063602]
[1728242466199,0.114,62888.0,62887.0,0.063602]
[1728242466702,0.118,62888.0,62887.0,0.063602]
[1728242476904,0.008,62888.0,62887.0,0.063602]
[1728242484821,0.008,62888.0,62887.0,0.11112811]
[1728242485015,0.36886109,62896.0,62887.0,0.47704]
[1728242485016,0.00806109,62896.0,62887.0,0.47704]
[1728242485214,0.0111,62897.0,62895.0,0.11]
[1728242485528,0.02812469,62897.0,62895.0,0.11]
[1728242485714,0.063591,62899.0,62895.0,0.11]
[1728242485916,0.00238541,62901.0,62896.0,0.063593]
[1728242486118,0.00238541,62901.0,62899.0,0.11]
[1728242486506,0.00238541,62901.0,62897.0,0.063592]
[1728242486816,0.11238541,62901.0,62895.0,0.001]
[1728242487117,0.063593,62897.0,62895.0,0.001]
[1728242487301,0.04372589,62896.0,62895.0,0.001]
[1728242487507,0.0356,62896.0,62895.0,0.001]